bitfinex-derivatives/quotes_ETHF0:USTF0_20251031
["timestamp","ask_amount","ask_price","bid_price","bid_amount"]
[1761931486050,0.4709,3824.4,3824.2,9.456]
[1761931486248,0.4709,3824.4,3824.2,9.455]
[1761931486444,0.15905457,3824.5,3824.2,9.455]
[1761931486850,0.62994457,3824.5,3824.2,9.455]
[1761931487050,0.15905457,3824.5,3824.2,9.455]
[1761931487558,0.15905457,3824.5,3824.2,9.92592]
[1761931487750,0.00255457,3824.5,3824.3,0.47091]
[1761931487953,0.025,3824.7,3824.6,0.47087]
[1761931488160,5.89848925,3825.3,3824.9,0.47084]
[1761931488453,3.2078,3825.9,3824.9,9.454]
[1761931488651,0.47081,3825.2,3824.9,9.454]
[1761931488845,0.1565,3825.0,3824.9,9.454]
[1761931489052,0.15889961,3825.0,3824.9,9.45595331]
[1761931490252,0.00239961,3825.0,3824.9,9.45595331]
[1761931490459,3.67852,3825.9,3825.1,0.47081]
[1761931490657,3.67852,3825.9,3824.9,9.45595331]
[1761931490658,3.2078,3825.9,3825.3,3.2078]
[1761931490857,0.47073,3825.8,3825.4,9.451]
[1761931491058,0.62725,3825.6,3825.4,9.451]
[1761931491259,0.1565,3825.6,3825.4,9.451]
[1761931491553,0.1588111,3825.6,3825.4,9.451]
[1761931491748,0.1588111,3825.6,3825.4,9.92177]
[1761931492148,0.1588111,3825.6,3825.4,9.451]
[1761931492546,0.1588111,3825.6,3825.4,9.92178]
[1761931493062,0.1588111,3825.6,3825.4,9.92177]
[1761931493668,0.1588111,3825.6,3825.4,9.451]
[1761931495258,0.1588111,3825.6,3825.4,9.92178]
[1761931495259,0.0023111,3825.6,3825.4,9.92178]
[1761931495761,0.62719,3826.2,3825.4,9.451]
[1761931495963,0.62719,3826.2,3825.8,3.2078]
[1761931496148,0.62719,3826.2,3825.9,9.447]
[1761931496353,0.1565,3826.2,3826.0,0.47071]
[1761931496558,0.15851387,3826.2,3825.9,9.447]
[1761931496754,0.62920387,3826.2,3825.9,9.447]
[1761931496955,0.15851387,3826.2,3825.9,9.447]
[1761931497154,0.2515,3826.0,3825.9,9.447]
[1761931497350,0.15851387,3826.2,3825.9,9.447]
[1761931497655,0.47071,3826.1,3825.9,9.447]
[1761931498255,0.15851387,3826.2,3825.9,9.447]
[1761931498461,0.47071,3826.1,3825.9,9.447]
[1761931498860,0.1565,3825.6,3825.5,0.47077]
[1761931499069,0.62726,3825.6,3825.4,3.2078]
[1761931499361,0.62726,3825.6,3824.9,0.00195331]
[1761931499362,0.1565,3825.6,3825.5,9.444]
[1761931500358,0.1565,3825.6,3825.5,9.91477]
[1761931501165,0.15851387,3826.2,3825.9,0.47071]
[1761931501360,0.15851387,3826.2,3826.0,9.443]
[1761931501959,0.62920387,3826.2,3826.0,9.443]
[1761931502363,0.00201387,3826.2,3826.1,0.4707]
[1761931502663,0.1565,3826.8,3826.7,0.47062]
[1761931502863,0.1565,3826.8,3826.7,9.91262]
[1761931503565,0.62960206,3826.8,3826.7,9.442]
[1761931503860,0.1565,3826.2,3825.9,3.2078]
[1761931504060,0.1565,3826.2,3826.0,9.91171]
[1761931504266,0.4707,3826.1,3826.0,9.441]
[1761931504754,0.1565,3826.2,3826.0,9.44]
[1761931505655,0.1565,3826.2,3826.0,9.91071]
[1761931506469,0.1565,3826.2,3826.0,9.44]
[1761931506770,0.62726,3825.6,3825.5,3.2078]
[1761931506955,0.4708,3825.3,3825.1,3.2078]
[1761931507160,0.4708,3825.3,3825.2,9.439]
[1761931507562,0.7223,3825.3,3825.2,9.439]
[1761931508155,0.62733,3825.0,3824.9,0.00195331]
[1761931508364,0.1565,3825.0,3824.9,0.00195331]
[1761931508663,0.1565,3825.0,3824.9,4.94995331]
[1761931509069,0.408,3825.0,3824.9,4.94995331]
[1761931509268,0.408,3825.0,3824.9,9.20395331]
[1761931509672,0.1565,3825.0,3824.9,9.43995331]
[1761931510762,0.47079,3825.4,3824.9,9.91079331]
[1761931510965,3.6786,3825.3,3824.9,9.43995331]
[1761931511163,0.3638,3825.0,3824.9,0.00195331]
[1761931511568,0.3638,3825.0,3824.9,9.43895331]
[1761931511758,0.1332,3825.0,3824.9,9.43895331]
[1761931512458,0.96105682,3825.0,3824.9,0.00195331]
[1761931512772,4.16885682,3825.0,3824.9,0.00195331]
[1761931513070,0.73045682,3825.0,3824.9,0.00195331]
[1761931513667,0.47086,3824.8,3824.6,2.864]
[1761931513965,0.59725682,3824.7,3824.6,2.864]
[1761931514181,0.82785682,3824.7,3824.6,2.864]
[1761931514472,0.60412,3824.4,3824.0,3.2078]
[1761931514670,0.60412,3824.4,3824.0,3.21087094]
[1761931514671,0.47094,3824.1,3824.0,3.21087094]
[1761931514972,0.47094,3824.1,3824.0,0.00307094]
[1761931514973,1.30180859,3824.1,3824.0,0.00307094]
[1761931515969,0.60026859,3824.1,3824.0,0.00307094]
[1761931516571,0.83086859,3824.1,3824.0,0.00307094]
[1761931517270,0.1332,3823.8,3823.2,3.2078]
[1761931517470,0.59725682,3823.7,3823.2,3.2078]
[1761931517673,0.59725682,3823.6,3823.2,3.2078]
[1761931517858,0.1332,3823.8,3823.2,3.2078]
[1761931517859,0.2306,3823.3,3823.2,3.2078]
[1761931518065,0.82785682,3823.3,3823.2,3.2078]
[1761931518266,0.2306,3823.3,3823.2,3.21077413]
[1761931518969,0.1332,3823.8,3823.2,3.21077413]
[1761931519167,0.59416361,3823.7,3823.2,3.21077413]
[1761931519367,0.1332,3823.8,3823.2,3.21077413]
[1761931519368,0.47103,3823.5,3823.2,3.21077413]
[1761931519573,0.47104,3823.4,3823.2,3.21077413]
[1761931519874,0.47102,3823.6,3823.2,3.68182413]
[1761931520165,0.47103,3823.5,3823.2,3.21077413]
[1761931520563,1.06448743,3823.4,3823.2,3.21077413]
[1761931520768,0.47104,3823.4,3823.2,3.21077413]
[1761931520964,0.47102,3823.6,3823.2,13.11783413]
[1761931521271,0.1332,3823.8,3823.2,12.64677413]
[1761931521272,0.2306,3823.3,3823.2,12.64677413]
[1761931521460,0.2306,3823.3,3823.2,0.00297413]
[1761931521966,0.1332,3823.8,3823.2,3.21077413]
[1761931522676,0.1332,3824.4,3823.9,0.47097]
[1761931523172,0.1332,3824.4,3823.8,9.436]
[1761931523559,0.47093,3824.3,3824.0,0.47096]
[1761931523759,0.1332,3824.4,3823.8,9.436]
[1761931524673,3.341,3825.0,3824.5,0.47089]
[1761931524976,0.70388,3824.7,3824.6,9.435]
[1761931525170,0.233,3824.3,3824.2,9.435]
[1761931525565,0.4727629,3824.3,3824.2,9.435]
[1761931526373,0.0018329,3824.3,3824.2,9.435]
[1761931526572,0.0018329,3824.3,3824.2,9.90594]
[1761931527478,3.29e-05,3824.3,3824.2,9.90594]
[1761931527774,0.1332,3825.0,3824.9,0.47085]
[1761931527979,0.60404,3825.0,3824.9,9.434]
[1761931528277,0.1332,3825.0,3824.9,9.434]
[1761931528466,0.1332,3825.0,3824.9,9.90485]
[1761931528665,0.1350507,3825.0,3824.9,9.90485]
[1761931529380,0.1565,3825.6,3825.5,0.47078]
[1761931529679,0.1565,3825.6,3825.5,9.434]
[1761931529884,0.1565,3825.6,3825.5,9.90478]
[1761931530272,0.15852137,3825.6,3825.5,9.434]
[1761931530970,0.15852137,3825.6,3825.5,9.90477]
[1761931531170,0.15852137,3825.6,3825.5,13.11257]
[1761931531876,0.62928137,3825.6,3825.5,12.6418]
[1761931532081,0.15852137,3825.6,3825.5,13.11257]
[1761931532980,0.15852137,3825.6,3825.5,12.6418]
[1761931533379,0.15852137,3825.6,3825.5,13.11257]
[1761931533580,0.62928137,3825.6,3825.5,3.2078]
[1761931533778,0.86228137,3825.6,3825.5,12.6398]
[1761931534083,0.7038,3825.2,3825.1,3.2078]
[1761931534387,0.7038,3825.2,3825.1,12.6388]
[1761931535377,0.1361,3824.4,3824.3,3.2078]
[1761931535575,0.607,3824.4,3824.3,3.2078]
[1761931535772,0.3691,3824.4,3824.3,12.6378]
[1761931535973,0.84,3824.4,3824.3,12.6378]
[1761931536369,0.84,3824.4,3824.3,9.43]
[1761931537574,0.1361,3823.8,3823.5,3.2078]
[1761931537885,0.1361,3823.8,3823.6,9.43]
[1761931538189,0.60708,3823.8,3823.6,9.43]
[1761931538384,0.60708,3823.8,3823.5,3.67882]
[1761931538385,0.471,3823.7,3823.5,3.2078]
[1761931538578,0.471,3823.7,3823.6,9.43]
[1761931538977,0.1361,3823.8,3823.6,9.43]
[1761931539278,0.60708,3823.8,3823.6,9.43]
[1761931540090,0.47099,3823.7,3823.6,9.43]
[1761931540789,0.70399,3823.7,3823.6,9.43]
[1761931541392,0.47099,3823.7,3823.6,9.43]
[1761931542292,0.70764,3823.3,3823.2,0.00297413]
[1761931542708,0.1335,3822.6,3822.1,3.2078]
[1761931542991,0.47117,3822.3,3822.2,9.429]
[1761931543189,0.1335,3822.6,3822.2,9.429]
[1761931543392,0.47114,3822.5,3822.2,9.429]
[1761931543686,0.47419564,3822.5,3822.2,9.43128397]
[1761931543893,0.47116,3822.4,3822.2,9.43128397]
[1761931545188,0.00304564,3822.5,3822.2,9.43128397]
[1761931546086,0.47116,3822.4,3822.2,9.43128397]
[1761931546589,0.00304564,3822.5,3822.2,9.43128397]
[1761931546796,0.00304564,3822.5,3822.3,0.47116]
[1761931548799,0.47105,3823.3,3822.9,0.47108]
[1761931549000,0.60456,3823.2,3823.0,9.429]
[1761931549201,0.1335,3823.2,3823.0,9.90008]
[1761931549895,0.13635663,3823.2,3823.1,0.47107]
[1761931550295,0.00285663,3823.2,3823.1,0.47107]
[1761931550493,0.13635663,3823.2,3822.8,3.2078]
[1761931550697,0.60741663,3823.2,3823.1,9.429]
[1761931551789,0.84401663,3823.2,3823.1,9.429]
[1761931552091,0.60741663,3823.2,3823.1,9.429]
[1761931553493,0.70769,3822.9,3822.8,3.2078]
[1761931554800,0.47111,3822.8,3822.7,9.429]
[1761931555099,0.13635663,3823.2,3822.7,9.429]
[1761931555298,0.47107,3823.1,3822.7,9.429]
[1761931555500,0.47107,3823.1,3822.8,3.2078]
[1761931555693,0.13635663,3823.2,3822.8,3.2078]
[1761931555893,0.47107,3823.1,3822.9,9.428]
[1761931556094,0.13635663,3823.2,3823.1,0.47107]
[1761931556293,0.47107,3823.1,3822.9,9.428]
[1761931556500,0.47108,3823.0,3822.9,9.428]
[1761931556805,0.1335,3822.6,3822.0,3.2078]
[1761931557099,0.47114,3822.5,3822.3,9.428]
[1761931557301,0.47114,3822.5,3822.0,3.2078]
[1761931557302,0.47115,3822.4,3822.2,0.47346397]
[1761931557499,0.70777,3822.3,3822.2,0.00228397]
[1761931557702,0.47117,3822.3,3822.2,9.42928397]
[1761931560196,0.1335,3822.6,3822.2,9.42928397]
[1761931560601,0.1335,3822.6,3822.2,0.00228397]
[1761931560602,0.70777,3822.3,3822.2,0.00228397]
[1761931560895,0.70777,3822.3,3822.2,9.42928397]
[1761931561410,0.1335,3822.6,3822.2,9.42928397]
[1761931561708,0.47114,3822.5,3822.2,9.42928397]
[1761931562003,10.4255,3823.5,3822.9,0.47109]
[1761931562004,0.1335,3823.5,3822.9,0.47109]
[1761931562191,0.1361,3823.8,3823.1,3.2078]
[1761931562390,4.38498,3824.8,3823.6,3.2078]
[1761931562596,0.1335,3824.0,3823.6,3.2078]
[1761931562803,0.1335,3823.5,3823.3,0.47104]
[1761931562998,0.1335,3823.5,3823.4,4.115]
[1761931563307,0.13569594,3823.5,3823.4,4.115]
[1761931563509,0.00219594,3823.5,3823.4,4.115]
[1761931563713,0.1335,3824.0,3823.8,0.47098]
[1761931563909,0.1335,3824.0,3823.9,9.427]
[1761931564207,0.2366,3823.8,3823.7,3.2078]
[1761931564409,0.1335,3823.2,3823.1,3.2078]
[1761931564608,0.13555808,3823.2,3823.1,9.426]
[1761931564812,0.4711,3822.9,3822.7,3.2078]
[1761931565000,0.4711,3822.9,3822.8,9.426]
[1761931566408,0.2366,3822.8,3822.7,3.2078]
[1761931566597,0.70777,3822.4,3822.3,7.6668]
[1761931566797,0.1335,3822.6,3822.3,7.6668]
[1761931567004,0.1335,3822.6,3822.4,0.47115]
[1761931567408,0.47108,3823.0,3822.7,0.47111]
[1761931567703,0.4711,3822.9,3822.8,9.425]
[1761931568306,0.47109,3822.9,3822.8,9.425]
[1761931569406,0.13555808,3823.2,3822.8,9.425]
[1761931569606,0.47108,3823.0,3822.8,9.425]
[1761931570306,0.13555808,3823.2,3822.8,9.425]
[1761931570501,0.47108,3823.0,3822.8,9.425]
[1761931570901,0.47108,3823.0,3822.3,3.2078]
[1761931570902,0.47115,3822.5,3822.3,3.67897]
[1761931571112,0.1416,3822.6,3822.4,9.425]
[1761931571412,0.1416,3822.6,3822.4,9.89615]
[1761931572209,0.1416,3822.6,3822.5,0.47114]
[1761931572410,0.13555808,3823.2,3822.4,9.425]
[1761931572715,0.1416,3822.6,3822.5,0.47114]
[1761931572916,0.1416,3822.6,3822.4,9.425]
[1761931573111,0.1416,3822.6,3822.5,0.47114]
[1761931573415,0.1416,3822.6,3822.5,9.89514]
[1761931574003,0.13555808,3823.2,3822.5,9.424]
[1761931574219,0.47112,3822.8,3822.6,0.47112]
[1761931574514,0.47112,3822.8,3822.7,0.47112]
[1761931574809,0.60661808,3823.2,3822.5,9.424]
[1761931575010,0.47108,3823.0,3822.9,0.47108]
[1761931575210,0.47108,3823.0,3822.9,9.424]
[1761931575605,0.60661808,3823.2,3822.9,9.424]
[1761931575806,0.47107,3823.1,3822.9,9.89508]
[1761931576305,0.1335,3824.0,3823.0,9.17769]
[1761931576508,0.1335,3824.0,3823.9,3.2078]
[1761931576708,4.64358171,3824.0,3823.9,9.423]
[1761931576905,4.64358171,3824.0,3823.2,0.47105]
[1761931576906,0.47104,3823.4,3823.2,0.47105]
[1761931577114,0.1416,3823.2,3823.1,3.67887]
[1761931577305,0.47101,3823.6,3823.5,0.47101]
[1761931577512,0.1416,3823.2,3823.1,3.67887]
[1761931577707,0.00275745,3823.6,3823.1,3.67887]
[1761931577708,0.00275745,3823.6,3823.5,0.47102]
[1761931577910,0.47376745,3823.6,3823.5,3.2078]
[1761931578110,0.1308,3823.2,3823.1,9.89407]
[1761931578323,0.00275745,3823.6,3823.5,0.47102]
[1761931578806,0.60446,3824.0,3823.9,0.47097]
[1761931579006,0.60446,3824.0,3823.9,9.423]
[1761931579407,0.1335,3824.0,3823.9,13.10177]
[1761931579709,0.00301486,3824.0,3823.9,12.6308]
[1761931579913,0.00301486,3824.0,3823.9,12.6298]
[1761931580419,0.47397486,3824.0,3823.9,0.47097]
[1761931580716,0.47397486,3824.0,3823.9,9.422]
[1761931581327,0.47101,3823.6,3823.5,3.67882]
[1761931581622,0.47099,3823.7,3823.6,0.471]
[1761931581812,0.1308,3823.8,3823.7,0.47099]
[1761931582011,0.00301486,3824.0,3823.9,0.47097]
[1761931582210,0.00301486,3824.0,3823.9,3.67877]
[1761931582613,0.47397486,3824.0,3823.9,12.6288]
[1761931583420,0.47397486,3824.0,3823.9,9.89197]
[1761931583719,0.47397486,3824.0,3823.7,0.47099]
[1761931583720,0.1308,3823.8,3823.7,0.47099]
[1761931583914,0.1308,3823.8,3823.7,9.42]
[1761931584114,0.60178,3823.8,3823.7,9.89099]
[1761931584312,0.00301486,3824.0,3823.9,0.47097]
[1761931584613,2.5452248,3825.4,3824.5,0.47088]
[1761931584614,0.47088,3824.7,3824.5,0.47088]
[1761931584811,3.2078,3825.2,3824.7,0.47086]
[1761931585007,3.2078,3825.2,3824.6,9.42]
[1761931585212,0.47082,3825.1,3824.9,0.47085]
[1761931585411,0.14372452,3825.0,3824.9,0.47357339]
[1761931585624,0.61455452,3825.0,3824.9,0.00272339]
[1761931585817,0.61455452,3825.0,3824.9,9.42272339]
[1761931586626,0.83405452,3825.0,3824.9,9.42172339]
[1761931586930,0.83405452,3825.0,3824.9,0.00272339]
[1761931590634,0.83405452,3825.0,3823.9,3.2078]
[1761931590635,0.47095,3824.1,3823.9,3.2078]
[1761931590821,0.47093,3824.3,3824.0,7.015]
[1761931591023,0.47092,3824.3,3824.2,0.47093]
[1761931591224,0.1308,3824.4,3824.0,7.015]
[1761931591526,0.60171,3824.4,3824.3,0.47092]
[1761931591733,0.1308,3824.4,3824.3,3.67872]
[1761931592229,0.14372452,3825.0,3824.8,0.47085]
[1761931592424,0.14372452,3825.0,3824.9,0.47085]
[1761931592737,0.47085,3824.9,3824.8,9.417]
[1761931592927,0.47088,3824.6,3824.4,0.4709]
[1761931593128,0.47085,3824.9,3824.5,9.417]
[1761931593425,0.14372452,3825.0,3824.5,9.417]
[1761931593630,0.1308,3824.4,3824.3,3.67872]
[1761931593822,0.1308,3824.4,3824.3,13.09472]
[1761931594222,0.60171,3824.4,3824.3,13.09472]
[1761931594418,0.60171,3824.4,3824.3,12.6238]
[1761931594827,0.60171,3824.4,3824.3,3.2078]
[1761931595024,0.60171,3824.4,3824.3,12.6238]
[1761931595332,0.1308,3824.4,3824.3,13.09472]
[1761931595833,0.60171,3824.4,3824.3,12.6238]
[1761931596023,0.60171,3824.4,3824.3,13.09472]
[1761931596223,0.3503,3824.4,3824.3,9.416]
[1761931596433,0.1308,3824.4,3824.3,9.416]
[1761931596627,0.14372452,3825.0,3824.9,0.47085]
[1761931596823,0.61455452,3825.0,3824.9,12.6238]
[1761931597324,0.14372452,3825.0,3824.9,0.47085]
[1761931597639,0.61455452,3825.0,3824.9,9.88585]
[1761931597935,0.14372452,3825.0,3824.9,9.415]
[1761931598136,0.14372452,3825.0,3824.9,13.09365]
[1761931599025,0.00212452,3825.0,3824.9,13.09365]
[1761931600436,0.60156,3825.6,3825.5,0.47077]
[1761931600437,0.1308,3825.6,3825.5,0.47077]
[1761931600635,0.1308,3825.6,3825.5,9.88477]
[1761931601232,3.2078,3825.9,3825.8,0.47074]
[1761931601541,0.00262162,3825.9,3825.8,3.67854]
[1761931602638,0.47334162,3825.9,3825.8,3.2078]
[1761931602825,0.47334162,3825.9,3825.8,3.67854]
[1761931603032,0.47334162,3825.9,3825.8,3.2078]
[1761931603230,0.47334162,3825.9,3825.8,10.95754]
[1761931603231,0.00262162,3825.9,3825.8,10.95754]
[1761931603432,0.00262162,3825.9,3825.8,10.4868]
[1761931603737,0.1308,3826.5,3825.8,18.4868]
[1761931603935,0.1308,3826.5,3826.4,3.2078]
[1761931604147,0.1308,3826.5,3826.4,12.6208]
[1761931604837,0.1337731,3826.5,3826.4,12.6208]
[1761931605339,0.1337731,3826.5,3826.4,12.6198]
[1761931606245,0.1337731,3826.5,3826.4,3.2078]
[1761931606444,0.1337731,3826.5,3826.4,12.6188]
[1761931607339,0.1392,3826.0,3825.9,3.67852]
[1761931607540,0.1392,3826.0,3825.9,13.08952]
[1761931607833,0.1392,3826.0,3825.9,3.67852]
[1761931608038,0.1392,3826.0,3825.9,13.08952]
[1761931608444,0.1337731,3826.5,3826.4,0.47066]
[1761931608643,0.1337731,3826.5,3826.4,13.08846]
[1761931609142,0.1308,3827.0,3826.9,0.4706]
[1761931609334,0.1308,3827.0,3826.9,13.0884]
[1761931609641,0.1308,3827.0,3826.9,3.2078]
[1761931609850,0.1308,3827.0,3826.9,12.6178]
[1761931610341,0.13369727,3827.0,3826.9,12.62000551]
[1761931610543,0.60428727,3827.0,3826.9,12.62000551]
[1761931611041,0.83488727,3827.0,3826.9,9.41120551]
[1761931611233,4.04268727,3827.0,3826.9,9.41120551]
[1761931611538,0.83488727,3827.0,3826.9,9.41120551]
[1761931612240,0.47066,3826.4,3826.3,3.2078]
[1761931612541,0.47066,3826.4,3826.3,9.0578]
[1761931613447,0.60985,3826.5,3826.4,0.47066]
[1761931613845,0.60985,3826.5,3826.3,9.06092002]
[1761931613846,0.47066,3826.4,3826.3,9.06092002]
[1761931614635,0.47066,3826.4,3826.3,9.53159002]
[1761931614840,0.70126,3826.4,3826.3,0.00312002]
[1761931615749,0.47066,3826.4,3826.3,0.00312002]
[1761931616343,0.47066,3826.4,3826.3,0.47379002]
[1761931616538,0.60985,3826.5,3826.4,0.47066]
[1761931616945,0.13369727,3827.0,3826.4,3.67846]
[1761931617251,0.13369727,3827.0,3826.9,0.4706]
[1761931617557,0.13369727,3827.0,3826.9,9.8776]
[1761931618045,0.13369727,3827.0,3826.9,0.4706]
[1761931618245,0.13369727,3827.0,3826.9,9.8776]
[1761931618836,0.1392,3827.5,3827.4,0.47054]
[1761931619039,0.1392,3827.5,3827.4,3.67834]
[1761931619948,0.14246957,3827.5,3827.4,3.67834]
[1761931620450,0.14246957,3827.5,3827.4,9.406]
[1761931620636,0.47055,3827.3,3827.2,0.47056]
[1761931620843,0.47056,3827.3,3827.1,0.47057]
[1761931621045,0.14246957,3827.5,3827.2,9.406]
[1761931621245,0.47058,3827.1,3827.0,3.2078]
[1761931621445,0.47057,3827.2,3827.0,13.08439]
[1761931621649,0.70117,3827.2,3827.1,9.406]
[1761931621850,0.47057,3827.2,3827.1,9.406]
[1761931622056,0.14246957,3827.5,3827.1,9.87657]
[1761931622057,0.47056,3827.3,3827.1,9.87657]
[1761931622256,0.14246957,3827.5,3827.3,0.47054]
[1761931623248,0.14246957,3827.5,3827.4,3.2078]
[1761931624243,0.1392,3828.5,3827.4,11.2078]
[1761931624442,0.1392,3828.5,3828.3,3.67823]
[1761931624645,0.1392,3828.5,3828.4,9.404]
[1761931625049,0.1392,3829.0,3828.9,0.47036]
[1761931625253,0.14157036,3829.0,3828.9,9.404]
[1761931625444,0.14157036,3829.0,3828.8,3.67816]
[1761931625647,0.14157036,3829.0,3828.9,9.404]
[1761931626051,0.1392,3829.8,3829.6,0.47027]
[1761931626255,0.1392,3829.8,3829.6,13.08207]
[1761931626653,3.2078,3830.7,3830.3,0.47018]
[1761931626957,0.14109098,3830.4,3830.3,9.40668923]
[1761931627154,0.14109098,3830.4,3830.3,9.87686923]
[1761931627355,0.14109098,3830.4,3830.3,9.40568923]
[1761931627551,0.14109098,3830.4,3830.3,0.00268923]
[1761931627857,0.37169098,3830.4,3830.3,0.00268923]
[1761931628055,0.37169098,3830.4,3830.3,9.40568923]
[1761931628456,0.14109098,3830.4,3830.3,9.40568923]
[1761931629054,0.14109098,3830.4,3830.3,9.40468923]
[1761931630658,0.37169098,3830.4,3830.3,0.00268923]
[1761931630965,0.2154,3829.6,3829.5,3.2078]
[1761931631265,0.2154,3829.6,3829.5,12.6078]
[1761931631452,0.47026,3829.7,3829.5,12.6078]
[1761931631965,0.47026,3829.7,3829.5,12.61113319]
[1761931632160,0.2154,3829.6,3829.5,12.61113319]
[1761931632655,0.2154,3829.6,3829.5,0.00333319]
[1761931633052,0.47026,3829.7,3829.5,0.00333319]
[1761931633659,0.2154,3829.6,3829.5,0.00333319]
[1761931635061,0.1322,3829.2,3828.7,3.2078]
[1761931635264,0.1322,3829.2,3828.8,4.357]
[1761931635773,0.1322,3828.0,3827.9,3.67828]
[1761931636061,0.1322,3828.0,3827.9,12.6095822]
[1761931638463,0.1322,3828.0,3827.9,3.2105822]
[1761931638666,0.1322,3828.0,3827.9,12.6095822]
[1761931639165,0.60267,3828.0,3827.9,12.6095822]
[1761931639563,0.60267,3828.0,3827.9,3.2105822]
[1761931639860,0.60267,3828.0,3827.9,12.6095822]
[1761931640064,0.81807,3828.0,3827.9,0.0027822]
[1761931640369,0.81807,3828.0,3827.9,9.4017822]
[1761931640560,0.1322,3828.0,3827.9,9.4017822]
[1761931640868,0.60267,3828.0,3827.9,9.4017822]
[1761931641062,0.1322,3828.0,3827.9,13.0800622]
[1761931641271,0.1322,3828.0,3827.9,3.2105822]
[1761931641462,0.83007,3828.0,3827.9,12.6095822]
[1761931642564,0.83007,3828.0,3827.9,0.0027822]
[1761931642764,0.1361,3826.8,3826.6,3.67844]
[1761931642970,0.60671,3826.8,3826.7,9.399]
[1761931643158,0.1361,3826.8,3826.7,9.399]
[1761931643872,0.13795094,3826.8,3826.7,9.40118677]
[1761931644568,0.36535094,3826.8,3826.7,0.00218677]
[1761931645167,0.1361,3825.6,3825.4,3.2078]
[1761931645371,0.1361,3825.6,3825.5,9.4]
[1761931646169,0.1361,3825.6,3825.5,9.40273732]
[1761931646355,0.1361,3826.2,3826.1,0.4707]
[1761931646561,0.1361,3826.2,3826.1,13.0785]
[1761931647268,0.1361,3826.2,3826.0,0.47071]
[1761931647471,0.6068,3826.2,3826.1,9.401]
[1761931647674,0.47071,3826.1,3825.8,0.47073]
[1761931647871,0.47071,3826.1,3825.9,9.87172]
[1761931648167,0.1361,3826.2,3826.0,9.87171]
[1761931649166,0.1361,3826.2,3826.1,3.2078]
[1761931650167,0.13795094,3826.8,3826.1,11.2078]
[1761931650364,0.13795094,3826.8,3826.7,0.47063]
[1761931650564,0.13795094,3826.8,3826.7,9.87263]
[1761931650965,0.13795094,3826.8,3826.7,9.402]
[1761931652572,0.13795094,3826.8,3826.6,3.67844]
[1761931652775,0.13795094,3826.8,3826.7,9.402]
[1761931652969,0.13795094,3826.8,3826.6,3.67844]
[1761931653277,0.13795094,3826.8,3826.7,9.402]
[1761931653665,0.1361,3827.4,3827.3,0.47055]
[1761931653873,0.1361,3827.4,3827.3,13.08035]
[1761931654574,0.13903069,3827.4,3827.3,13.08035]
[1761931655568,0.60957069,3827.4,3827.3,3.2078]
[1761931655778,0.83697069,3827.4,3827.3,9.5388]
[1761931655973,0.69799,3827.0,3826.9,3.2078]
[1761931656175,0.69799,3827.0,3826.9,12.5424]
[1761931656373,0.47057,3827.2,3826.9,12.0718]
[1761931656576,0.13903069,3827.4,3827.1,0.47057]
[1761931656787,0.13903069,3827.4,3826.9,12.0718]
[1761931656788,0.13903069,3827.4,3827.3,0.47055]
[1761931656975,0.60957069,3827.4,3827.3,0.47055]
[1761931657180,0.47056,3827.2,3827.1,0.47057]
[1761931657379,0.13903069,3827.4,3827.3,0.47055]
[1761931657679,0.13903069,3827.4,3827.3,3.2078]
[1761931657882,0.83697069,3827.4,3827.3,12.6158]
[1761931658480,0.13903069,3827.4,3826.9,3.2078]
[1761931658781,0.13903069,3827.4,3827.3,0.47055]
[1761931658980,0.13903069,3827.4,3827.3,3.67835]
[1761931661871,0.13903069,3827.4,3827.3,3.2078]
[1761931662279,0.13903069,3827.4,3827.3,12.6088]
[1761931662484,0.36113069,3827.4,3827.3,12.6088]
[1761931663379,0.36113069,3827.4,3827.3,9.401]
[1761931663584,0.6927,3826.9,3826.8,3.2078]
[1761931663770,0.6927,3826.9,3826.8,12.6088]
[1761931663974,0.6927,3826.9,3826.8,3.2078]
[1761931664184,0.47059,3827.0,3826.8,12.6088]
[1761931664383,0.47059,3827.0,3826.8,13.07941]
[1761931664578,0.2221,3826.9,3826.8,12.6088]
[1761931665085,0.6927,3826.9,3826.8,12.6088]
[1761931665284,0.13903069,3827.4,3826.9,0.4706]
[1761931665483,0.13903069,3827.4,3826.8,12.6088]
[1761931665484,0.13903069,3827.4,3826.8,3.2078]
[1761931665675,0.4706,3826.9,3826.8,3.2078]
[1761931665976,0.6927,3826.9,3826.8,3.2078]
[1761931666182,0.6927,3826.9,3826.8,12.6088]
[1761931666384,0.6927,3826.9,3826.8,13.07941]
[1761931666578,1.31540069,3827.4,3826.9,0.47059]
[1761931666779,0.4706,3826.9,3826.8,12.6088]
[1761931666983,0.47071,3826.0,3825.9,3.2078]
[1761931667180,0.69281,3826.0,3825.9,12.6088]
[1761931667385,0.69281,3826.0,3825.9,9.401]
[1761931667876,0.2221,3826.0,3825.9,9.401]
[1761931668082,0.47071,3826.0,3825.9,9.401]
[1761931668281,0.14,3826.2,3825.5,3.68130732]
[1761931668282,0.14,3825.6,3825.5,3.68130732]
[1761931668577,0.14,3826.2,3826.1,0.4707]
[1761931668779,0.61069,3826.2,3826.1,9.402]
[1761931668981,0.69281,3826.0,3825.9,3.2078]
[1761931669381,0.69281,3826.0,3825.9,7.8458]
[1761931670179,0.61076,3825.6,3825.5,3.21053732]
[1761931670487,0.61076,3825.6,3825.5,9.40473732]
[1761931670791,0.61076,3825.6,3825.5,9.87550732]
[1761931670976,0.14,3825.6,3825.5,9.87550732]
[1761931671289,0.14,3825.6,3825.5,13.08330732]
[1761931671682,0.14,3825.6,3825.5,3.68130732]